fUSD/lending_fUSD_20240122
["ID","MTS","AMOUNT","RATE_DAILY","PERIOD"]
[312482566,1705918413010,-902.59,0.00055068,120]
[312482567,1705918413033,-500.0,0.00055068,120]
[312482568,1705918413057,-500.0,0.00055068,120]
[312482569,1705918413081,-500.0,0.00055068,120]
[312482570,1705918413105,-1240.23,0.00055068,120]
[312482571,1705918413129,-668.9,0.00055068,120]
[312482572,1705918413155,-6913.76,0.00055068,120]
[312482573,1705918413179,-2982.63,0.00055068,120]
[312482574,1705918413205,-500.0,0.00055068,120]
[312482575,1705918413230,-5100.45,0.00055068,120]
[312482576,1705918413254,-1676.05,0.00055068,120]
[312482577,1705918413458,-500.0,0.00055068,120]
[312482578,1705918413482,-326.94621195,0.00055068,120]
[312482579,1705918413509,-1239.21,0.00055068,120]
[312482580,1705918413533,-500.0,0.00055068,120]
[312482581,1705918413558,-1038.92,0.00055068,120]
[312482582,1705918413582,-1181.06,0.00055068,120]
[312482583,1705918413605,-500.0,0.00055068,120]
[312482584,1705918413629,-6435.91,0.00055068,120]
[312482585,1705918413653,-500.0,0.00055068,120]
[312482586,1705918413677,-1214.42,0.00055068,120]
[312482587,1705918413701,-1433.89,0.00055068,120]
[312482588,1705918413726,-1064.35,0.00055068,120]
[312482589,1705918413748,-500.0,0.00055068,120]
[312482590,1705918413771,-2142.16,0.00055068,120]
[312482591,1705918413794,-500.0,0.00055068,120]
[312482592,1705918413818,-500.0,0.00055068,120]
[312482593,1705918413841,-873.61,0.00055068,120]
[312482594,1705918413865,-2191.94,0.00055068,120]
[312482595,1705918413889,-532.44,0.00055068,120]
[312482596,1705918413913,-1073.55,0.00055068,120]
[312482597,1705918413937,-518.06207378,0.00055068,120]
[312482598,1705918413963,-9034.29,0.00055068,120]
[312482599,1705918413986,-918.93,0.00055068,120]
[312482600,1705918414010,-3414.72,0.00055068,120]
[312482601,1705918414035,-1999.18,0.00055068,120]
[312482602,1705918414059,-1061.34,0.00055068,120]
[312482603,1705918414082,-500.0,0.00055068,120]
[312482604,1705918414109,-922.93,0.00055068,120]
[312482605,1705918414134,-219.89,0.00055068,120]
[312482606,1705918414157,-293.1,0.00055068,120]
[312482607,1705918414181,-368.61,0.00055068,120]
[312482608,1705918414208,-1064.85,0.00055068,120]
[312482609,1705918414231,-500.0,0.00055068,120]
[312482610,1705918414255,-500.0,0.00055068,120]
[312482611,1705918414278,-808.33,0.00055068,120]
[312482612,1705918414302,-2476.34,0.00055068,120]
[312482613,1705918414326,-656.23,0.00055068,120]
[312482614,1705918414350,-4107.9,0.00055068,120]
[312482615,1705918414374,-8022.14,0.00055068,120]
[312482616,1705918414397,-699.33,0.00055068,120]
[312482617,1705918414421,-1665.07,0.00055068,120]
[312482618,1705918414445,-724.39,0.00055068,120]
[312482619,1705918414470,-1116.22,0.00055068,120]
[312482620,1705918414493,-500.0,0.00055068,120]
[312482621,1705918414516,-500.0,0.00055068,120]
[312482622,1705918414540,-611.15693825,0.00055068,120]
[312482623,1705918414564,-500.0,0.00055068,120]
[312482624,1705918414589,-500.0,0.00055068,120]
[312482625,1705918414614,-657.56,0.00055068,120]
[312482626,1705918414639,-2512.1,0.00055068,120]
[312482627,1705918414666,-500.0,0.00055068,120]
[312482628,1705918414690,-1194.47,0.00055068,120]
[312482629,1705918414720,-1720.31,0.00055068,120]
[312482630,1705918414743,-500.0,0.00055068,120]
[312482631,1705918414769,-500.0,0.00055068,120]
[312482632,1705918414794,-2301.29,0.00055068,120]
[312482633,1705918414818,-500.0,0.00055068,120]
[312482634,1705918414842,-706.13,0.00055068,120]
[312482635,1705918414866,-553.69,0.00055068,120]
[312482636,1705918414890,-500.0,0.00055068,120]
[312482637,1705918414914,-1669.08,0.00055068,120]
[312482638,1705918414937,-500.0,0.00055068,120]
[312482639,1705918414963,-19362.15,0.00055068,120]
[312482640,1705918414988,-1087.67,0.00055068,120]
[312482641,1705918415013,-712.61,0.00055068,120]
[312482642,1705918415038,-600.72,0.00055068,120]
[312482643,1705918415063,-500.0,0.00055068,120]
[312482644,1705918415088,-510.77899034,0.00055068,120]
[312482645,1705918415113,-500.0,0.00055068,120]
[312482646,1705918415136,-500.0,0.00055068,120]
[312482647,1705918415162,-500.0,0.00055068,120]
[312482648,1705918415187,-599.68,0.00055068,120]
[312482649,1705918415212,-368.6098893,0.00055068,120]
[312482650,1705918415241,-1199.72,0.00055068,120]
[312482651,1705918415267,-1532.53,0.00055068,120]
[312482652,1705918415291,-1694.05,0.00055068,120]
[312482653,1705918415317,-500.0,0.00055068,120]
[312482654,1705918415341,-500.0,0.00055068,120]
[312482655,1705918415366,-6686.82,0.00055068,120]
[312482656,1705918415390,-500.0,0.00055068,120]
[312482657,1705918415414,-1450.35,0.00055068,120]
[312482658,1705918415438,-1145.67,0.00055068,120]
[312482659,1705918415463,-532.98,0.00055068,120]
[312482660,1705918415489,-2499.42,0.00055068,120]
[312482661,1705918415515,-500.0,0.00055068,120]
[312482662,1705918415540,-500.0,0.00055068,120]
[312482663,1705918415564,-500.0,0.00055068,120]
[312482664,1705918415589,-6801.26,0.00055068,120]
[312482665,1705918415614,-500.0,0.00055068,120]
[312482666,1705918415639,-500.0,0.00055068,120]
[312482667,1705918415664,-1565.19,0.00055068,120]
[312482668,1705918415688,-1113.77,0.00055068,120]
[312482669,1705918415713,-826.52,0.00055068,120]
[312482670,1705918415738,-949.09,0.00055068,120]
[312482671,1705918415762,-565.56,0.00055068,120]
[312482672,1705918415786,-500.0,0.00055068,120]
[312482673,1705918415811,-1338.84,0.00055068,120]
[312482674,1705918415836,-500.0,0.00055068,120]
[312482675,1705918415864,-554.17,0.00055068,120]
[312482676,1705918415890,-5157.15,0.00055068,120]
[312482677,1705918415916,-500.0,0.00055068,120]
[312482678,1705918415942,-500.0,0.00055068,120]
[312482679,1705918415970,-2238.16,0.00055068,120]
[312482680,1705918416184,-1051.0,0.00055068,120]
[312482681,1705918416214,-500.0,0.00055068,120]
[312482682,1705918416242,-500.0,0.00055068,120]
[312482683,1705918416271,-1373.79,0.00055068,120]
[312482684,1705918416298,-1019.58,0.00055068,120]
[312482685,1705918416326,-967.68,0.00055068,120]
[312482686,1705918416353,-1695.45,0.00055068,120]
[312482687,1705918416378,-500.0,0.00055068,120]
[312482688,1705918416403,-529.58,0.00055068,120]
[312482689,1705918416428,-500.0,0.00055068,120]
[312482690,1705918416453,-741.59,0.00055068,120]
[312482691,1705918416483,-500.0,0.00055068,120]
[312482692,1705918416510,-1989.11,0.00055068,120]
[312482693,1705918416542,-819.31,0.00055068,120]
[312482694,1705918416570,-500.0,0.00055068,120]
[312482695,1705918416601,-1387.06,0.00055068,120]
[312482696,1705918416629,-781.78,0.00055068,120]
[312482697,1705918416657,-584.46,0.00055068,120]
[312482698,1705918416687,-2030.19,0.00055068,120]
[312482699,1705918416719,-1238.5,0.00055068,120]
[312482700,1705918416748,-1848.21,0.00055068,120]
[312482701,1705918416782,-500.0,0.00055068,120]
[312482702,1705918416810,-500.0,0.00055068,120]
[312482703,1705918416840,-500.0,0.00055068,120]
[312482704,1705918416869,-1704.55,0.00055068,120]
[312482705,1705918416899,-1593.25,0.00055068,120]
[312482706,1705918416928,-1786.07,0.00055068,120]
[312482707,1705918416960,-500.0,0.00055068,120]
[312482708,1705918416988,-527.63753586,0.00055068,120]
[312482709,1705918417014,-500.0,0.00055068,120]
[312482710,1705918417041,-1836.11,0.00055068,120]
[312482711,1705918417069,-863.91,0.00055068,120]
[312482712,1705918417097,-500.0,0.00055068,120]
[312482713,1705918417125,-500.0,0.00055068,120]
[312482714,1705918417151,-500.0,0.00055068,120]
[312482715,1705918417175,-500.0,0.00055068,120]
[312482716,1705918417201,-801.79,0.00055068,120]
[312482717,1705918417235,-500.0,0.00055068,120]
[312482718,1705918417261,-2640.84,0.00055068,120]
[312482719,1705918417287,-500.0,0.00055068,120]
[312482720,1705918417315,-2001.63,0.00055068,120]
[312482721,1705918417341,-500.0,0.00055068,120]
[312482722,1705918417367,-500.0,0.00055068,120]
[312482723,1705918417392,-500.0,0.00055068,120]
[312482724,1705918417418,-359.62,0.00055068,120]
[312482725,1705918417442,-2344.12,0.00055068,120]
[312482726,1705918417472,-1496.93,0.00055068,120]
[312482727,1705918417498,-865.46,0.00055068,120]
[312482728,1705918417522,-1578.24,0.00055068,120]
[312482729,1705918417545,-500.0,0.00055068,120]
[312482730,1705918417569,-2342.35,0.00055068,120]
[312482731,1705918417594,-1034.4,0.00055068,120]
[312482732,1705918417620,-1186.8,0.00055068,120]
[312482733,1705918417646,-500.0,0.00055068,120]
[312482734,1705918417671,-1032.19,0.00055068,120]
[312482735,1705918417695,-761.23,0.00055068,120]
[312482736,1705918417725,-3060.2,0.00055068,120]
[312482737,1705918417749,-500.0,0.00055068,120]
[312482738,1705918417772,-527.58019642,0.00055068,120]
[312482739,1705918417797,-500.0,0.00055068,120]
[312482740,1705918417822,-745.92,0.00055068,120]
[312482741,1705918417847,-500.0,0.00055068,120]
[312482742,1705918417871,-736.11,0.00055068,120]
[312482743,1705918417897,-1188.48,0.00055068,120]
[312482744,1705918417921,-500.0,0.00055068,120]
[312482745,1705918417945,-2308.27,0.00055068,120]
[312482746,1705918417971,-500.0,0.00055068,120]
[312482747,1705918417995,-1372.18,0.00055068,120]
[312482748,1705918418021,-1972.56,0.00055068,120]
[312482749,1705918418045,-1101.89,0.00055068,120]
[312482750,1705918418069,-500.0,0.00055068,120]
[312482751,1705918418095,-552.39,0.00055068,120]
[312482752,1705918418119,-500.0,0.00055068,120]
[312482753,1705918418143,-2142.95,0.00055068,120]
[312482754,1705918418167,-541.92,0.00055068,120]
[312482755,1705918418193,-2444.17,0.00055068,120]
[312482756,1705918418223,-573.63567613,0.00055068,120]
[312482757,1705918418254,-500.0,0.00055068,120]
[312482758,1705918418278,-2463.13,0.00055068,120]
[312482759,1705918418303,-961.77,0.00055068,120]
[312482760,1705918418328,-500.0,0.00055068,120]
[312482761,1705918418354,-500.0,0.00055068,120]
[312482762,1705918418380,-500.0,0.00055068,120]
[312482763,1705918418405,-747.18,0.00055068,120]
[312482764,1705918418431,-1281.33,0.00055068,120]
[312482765,1705918418458,-1524.9,0.00055068,120]
[312482766,1705918418491,-500.0,0.00055068,120]
[312482767,1705918418546,-924.15,0.00055068,120]
[312482768,1705918418571,-500.0,0.00055068,120]
[312482769,1705918418598,-14502.99,0.00055068,120]
[312482770,1705918418623,-500.0,0.00055068,120]
[312482771,1705918418647,-2585.05,0.00055068,120]
[312482772,1705918418672,-500.0,0.00055068,120]
[312482773,1705918418697,-684.76,0.00055068,120]
[312482774,1705918418728,-1085.35,0.00055068,120]
[312482775,1705918418751,-2250.02,0.00055068,120]
[312482776,1705918418776,-2371.14,0.00055068,120]
[312482777,1705918418801,-1090.09,0.00055068,120]
[312482778,1705918418826,-1293.87,0.00055068,120]
[312482779,1705918418851,-1182.55,0.00055068,120]
[312482780,1705918418877,-500.0,0.00055068,120]
[312482781,1705918418901,-500.0,0.00055068,120]
[312482782,1705918418925,-500.0,0.00055068,120]
[312482783,1705918419131,-3817.42,0.00055068,120]
[312482784,1705918419156,-784.09,0.00055068,120]
[312482785,1705918419181,-4226.7,0.00055068,120]
[312482786,1705918419207,-500.0,0.00055068,120]
[312482787,1705918419235,-3693.98,0.00055068,120]
[312482788,1705918419259,-500.0,0.00055068,120]
[312482789,1705918419283,-892.42,0.00055068,120]
[312482790,1705918419308,-2184.8,0.00055068,120]
[312482791,1705918419334,-1360.81,0.00055068,120]
[312482792,1705918419357,-1092.84,0.00055068,120]
[312482793,1705918419382,-3654.95,0.00055068,120]
[312482794,1705918419406,-16683.3,0.00055068,120]
[312482795,1705918419431,-817.95,0.00055068,120]
[312482796,1705918419459,-500.0,0.00055068,120]
[312482797,1705918419484,-1780.31,0.00055068,120]
[312482798,1705918419513,-705.95,0.00055068,120]
[312482799,1705918419539,-500.0,0.00055068,120]
[312482800,1705918419565,-500.0,0.00055068,120]
[312482801,1705918419590,-2271.35,0.00055068,120]
[312482802,1705918419615,-500.0,0.00055068,120]
[312482803,1705918419640,-2209.82,0.00055068,120]
[312482804,1705918419666,-1049.17,0.00055068,120]
[312482805,1705918419690,-500.0,0.00055068,120]
[312482806,1705918419714,-1714.36,0.00055068,120]
[312482807,1705918419739,-500.0,0.00055068,120]
[312482808,1705918419762,-500.0,0.00055068,120]
[312482809,1705918419788,-972.55,0.00055068,120]
[312482810,1705918419813,-500.0,0.00055068,120]
[312482811,1705918419840,-960.95,0.00055068,120]
[312482812,1705918419865,-739.42,0.00055068,120]
[312482813,1705918419889,-738.1,0.00055068,120]
[312482814,1705918419914,-602.34,0.00055068,120]
[312482815,1705918419939,-460.35775599,0.00055068,120]
[312482816,1705918419963,-500.0,0.00055068,120]
[312482817,1705918419987,-788.32,0.00055068,120]
[312482818,1705918420013,-500.0,0.00055068,120]
[312482819,1705918420037,-1467.59,0.00055068,120]
[312482820,1705918420061,-1216.84,0.00055068,120]
[312482821,1705918420084,-514.37,0.00055068,120]
[312482822,1705918420106,-610.82440485,0.00055068,120]
[312482823,1705918420129,-500.0,0.00055068,120]
[312482824,1705918420154,-5756.1,0.00055068,120]
[312482825,1705918420178,-3899.08,0.00055068,120]
[312482826,1705918420202,-500.0,0.00055068,120]
[312482827,1705918420229,-500.0,0.00055068,120]
[312482828,1705918420256,-500.0,0.00055068,120]
[312482829,1705918420281,-1819.22,0.00055068,120]
[312482830,1705918420304,-1489.53,0.00055068,120]
[312482831,1705918420329,-500.0,0.00055068,120]
[312482832,1705918420353,-1836.66,0.00055068,120]
[312482833,1705918420377,-759.64,0.00055068,120]
[312482834,1705918420402,-500.0,0.00055068,120]
[312482835,1705918420426,-1192.99,0.00055068,120]
[312482836,1705918420450,-500.0,0.00055068,120]
[312482837,1705918420476,-155.0,0.000553,120]
[312482838,1705918420499,-500.0,0.00055342,120]
[312482839,1705918420524,-713.28,0.00055342,120]
[312482840,1705918420547,-500.0,0.00055342,120]
[312482841,1705918420572,-500.0,0.00055342,120]
[312482842,1705918420597,-15551.99,0.00055342,120]
[312482843,1705918420620,-602.84,0.00055342,120]
[312482844,1705918420644,-645.74,0.00055342,120]
[312482845,1705918420669,-544.66572325,0.00055342,120]
[312482846,1705918420693,-500.0,0.00055342,120]
[312482847,1705918420721,-636.13,0.00055342,120]
[312482848,1705918420745,-500.0,0.00055342,120]
[312482849,1705918420769,-500.0,0.00055342,120]
[312482850,1705918420793,-518.1907664,0.00055342,120]
[312482851,1705918420818,-500.0,0.00055342,120]
[312482852,1705918420843,-1434.64,0.00055342,120]
[312482853,1705918420867,-1398.85,0.00055342,120]
[312482854,1705918420890,-500.0,0.00055342,120]
[312482855,1705918420914,-500.0,0.00055342,120]
[312482856,1705918420940,-2257.7,0.00055342,120]
[312482857,1705918420963,-997.7,0.00055342,120]
[312482858,1705918420986,-1472.88,0.00055342,120]
[312482859,1705918421009,-745.51,0.00055342,120]
[312482860,1705918421033,-1904.28,0.00055342,120]
[312482861,1705918421057,-500.0,0.00055342,120]
[312482862,1705918421081,-500.0,0.00055342,120]
[312482863,1705918421106,-500.0,0.00055342,120]
[312482864,1705918421130,-500.0,0.00055342,120]
[312482865,1705918421154,-707.21,0.00055342,120]
[312482866,1705918421177,-1764.0,0.00055342,120]
[312482867,1705918421201,-1907.12,0.00055342,120]
[312482868,1705918421228,-500.0,0.00055342,120]
[312482869,1705918421254,-315.33920621,0.00055342,120]
[312482870,1705918421278,-200.46056132,0.00055342,120]
[312482871,1705918421301,-500.0,0.00055342,120]
[312482872,1705918421325,-500.0,0.00055342,120]
[312482873,1705918421349,-500.0,0.00055342,120]
[312482874,1705918421371,-500.0,0.00055342,120]
[312482875,1705918421396,-533.14222409,0.00055342,120]
[312482876,1705918421420,-1187.06,0.00055342,120]
[312482877,1705918421445,-7460.54,0.00055342,120]
[312482878,1705918421469,-500.0,0.00055342,120]
[312482879,1705918421493,-566.60822387,0.00055342,120]
[312482880,1705918421516,-500.0,0.00055342,120]
[312482881,1705918421540,-2478.45,0.00055342,120]
[312482882,1705918421565,-514.61023482,0.00055342,120]
[312482883,1705918421587,-500.0,0.00055342,120]
[312482884,1705918421611,-500.0,0.00055342,120]
[312482885,1705918421635,-742.13,0.00055342,120]
[312482886,1705918421659,-1783.77,0.00055342,120]
[312482887,1705918421871,-4667.27,0.00055342,120]
[312482888,1705918421897,-6273.73,0.00055342,120]
[312482889,1705918421923,-2435.59,0.00055342,120]
[312482890,1705918421947,-500.0,0.00055342,120]
[312482891,1705918421972,-500.0,0.00055342,120]
[312482892,1705918421997,-2017.06,0.00055342,120]
[312482893,1705918422022,-500.0,0.00055342,120]
[312482894,1705918422047,-500.0,0.00055342,120]
[312482895,1705918422071,-500.0,0.00055342,120]
[312482896,1705918422094,-500.0,0.00055342,120]
[312482897,1705918422118,-1952.41,0.00055342,120]
[312482898,1705918422143,-1278.95,0.00055342,120]
[312482899,1705918422168,-2429.43,0.00055342,120]
[312482900,1705918422192,-802.05,0.00055342,120]
[312482901,1705918422217,-500.0,0.00055342,120]
[312482902,1705918422241,-500.0,0.00055342,120]
[312482903,1705918422266,-1540.06,0.00055342,120]
[312482904,1705918422290,-1946.72,0.00055342,120]
[312482905,1705918422314,-1705.01,0.00055342,120]
[312482906,1705918422338,-500.0,0.00055342,120]
[312482907,1705918422362,-500.0,0.00055342,120]
[312482908,1705918422387,-602.12,0.00055342,120]
[312482909,1705918422410,-500.0,0.00055342,120]
[312482910,1705918422439,-1371.19,0.00055342,120]
[312482911,1705918422465,-502.72829376,0.00055342,120]
[312482912,1705918422491,-2895.35,0.00055342,120]
[312482913,1705918422516,-792.25,0.00055342,120]
[312482914,1705918422543,-2896.79,0.00055342,120]
[312482915,1705918422567,-500.0,0.00055342,120]
[312482916,1705918422592,-912.7,0.00055342,120]
[312482917,1705918422616,-500.0,0.00055342,120]
[312482918,1705918422642,-500.0,0.00055342,120]
[312482919,1705918422668,-973.37,0.00055342,120]
[312482920,1705918422695,-2453.18,0.00055342,120]
[312482921,1705918422723,-982.47,0.00055342,120]
[312482922,1705918422747,-1033.24,0.00055342,120]
[312482923,1705918422771,-500.0,0.00055342,120]
[312482924,1705918422796,-1382.98,0.00055342,120]
[312482925,1705918422822,-500.0,0.00055342,120]
[312482926,1705918422849,-500.0,0.00055342,120]
[312482927,1705918422876,-500.0,0.00055342,120]
[312482928,1705918422903,-500.0,0.00055342,120]
[312482929,1705918422929,-500.0,0.00055342,120]
[312482930,1705918422953,-1169.98,0.00055342,120]
[312482931,1705918422979,-3638.12,0.00055342,120]
[312482932,1705918423004,-529.0020023,0.00055342,120]
[312482933,1705918423034,-500.0,0.00055342,120]
[312482934,1705918423059,-531.58552934,0.00055342,120]
[312482935,1705918423085,-2460.08,0.00055342,120]
[312482936,1705918423111,-2081.85,0.00055342,120]
[312482937,1705918423137,-2674.45,0.00055342,120]
[312482938,1705918423161,-723.04,0.00055342,120]
[312482939,1705918423187,-563.17,0.00055342,120]
[312482940,1705918423214,-1502.27,0.00055342,120]
[312482941,1705918423239,-500.0,0.00055342,120]
[312482942,1705918423264,-403.63364528,0.00055342,120]
[312482943,1705918423288,-902.59,0.00055342,120]
[312482944,1705918423315,-500.0,0.00055342,120]
[312482945,1705918423347,-500.0,0.00055342,120]
[312482946,1705918423372,-500.0,0.00055342,120]
[312482947,1705918423398,-1240.23,0.00055342,120]
[312482948,1705918423423,-668.9,0.00055342,120]
[312482949,1705918423447,-6913.76,0.00055342,120]
[312482950,1705918423474,-2982.63,0.00055342,120]
[312482951,1705918423498,-500.0,0.00055342,120]
[312482952,1705918423522,-5100.45,0.00055342,120]
[312482953,1705918423547,-1676.05,0.00055342,120]
[312482954,1705918423571,-500.0,0.00055342,120]
[312482955,1705918423597,-1239.21,0.00055342,120]
[312482956,1705918423625,-500.0,0.00055342,120]
[312482957,1705918423654,-1038.92,0.00055342,120]
[312482958,1705918423682,-1181.06,0.00055342,120]
[312482959,1705918423706,-327.93526412,0.00055342,120]
[312482960,1705918423734,-6435.91,0.00055342,120]
[312482961,1705918423758,-500.0,0.00055342,120]
[312482962,1705918423781,-1214.42,0.00055342,120]
[312482963,1705918423807,-1433.89,0.00055342,120]
[312482964,1705918423832,-1064.35,0.00055342,120]
[312482965,1705918423857,-500.0,0.00055342,120]
[312482966,1705918423882,-2142.16,0.00055342,120]
[312482967,1705918423906,-500.0,0.00055342,120]
[312482968,1705918423932,-500.0,0.00055342,120]
[312482969,1705918423957,-873.61,0.00055342,120]
[312482970,1705918423985,-2191.94,0.00055342,120]
[312482971,1705918424010,-532.44,0.00055342,120]
[312482972,1705918424036,-1073.55,0.00055342,120]
[312482973,1705918424062,-9034.29,0.00055342,120]
[312482974,1705918424088,-3414.72,0.00055342,120]
[312482975,1705918424114,-918.93,0.00055342,120]
[312482976,1705918424138,-1999.18,0.00055342,120]
[312482977,1705918424163,-1061.34,0.00055342,120]
[312482978,1705918424188,-500.0,0.00055342,120]
[312482979,1705918424217,-922.93,0.00055342,120]
[312482980,1705918424243,-1064.85,0.00055342,120]
[312482981,1705918424269,-500.0,0.00055342,120]
[312482982,1705918424293,-500.0,0.00055342,120]
[312482983,1705918424318,-808.33,0.00055342,120]
[312482984,1705918424345,-2476.34,0.00055342,120]
[312482985,1705918424370,-656.23,0.00055342,120]
[312482986,1705918424395,-4107.9,0.00055342,120]
[312482987,1705918424420,-8022.14,0.00055342,120]
[312482988,1705918424457,-699.33,0.00055342,120]
[312482989,1705918424486,-1665.07,0.00055342,120]
[312482990,1705918424772,-724.39,0.00055342,120]
[312482991,1705918424798,-1116.22,0.00055342,120]
[312482992,1705918424823,-500.0,0.00055342,120]
[312482993,1705918424848,-283.68375953,0.00055342,120]
[312482994,1705918424873,-500.0,0.00055342,120]
[312482995,1705918424903,-283.8772339,0.00055342,120]
[312482996,1705918424928,-657.56,0.00055342,120]
[312482997,1705918424955,-2512.1,0.00055342,120]
[312482998,1705918424983,-500.0,0.00055342,120]
[312482999,1705918425008,-1194.47,0.00055342,120]
[312483000,1705918425128,-1720.31,0.00055342,120]
[312483001,1705918425157,-500.0,0.00055342,120]
[312483002,1705918425184,-500.0,0.00055342,120]
[312483003,1705918425211,-2301.29,0.00055342,120]
[312483004,1705918425239,-500.0,0.00055342,120]
[312483005,1705918425265,-706.13,0.00055342,120]
[312483006,1705918425290,-553.69,0.00055342,120]
[312483007,1705918425316,-500.0,0.00055342,120]
[312483008,1705918425343,-1669.08,0.00055342,120]
[312483009,1705918425368,-533.97744401,0.00055342,120]
[312483010,1705918425393,-19362.15,0.00055342,120]
[312483011,1705918425418,-1087.67,0.00055342,120]
[312483012,1705918425443,-712.61,0.00055342,120]
[312483013,1705918425469,-600.72,0.00055342,120]
[312483014,1705918425495,-500.0,0.00055342,120]
[312483015,1705918425519,-500.0,0.00055342,120]
[312483016,1705918425545,-500.0,0.00055342,120]
[312483017,1705918425570,-500.0,0.00055342,120]
[312483018,1705918425602,-599.68,0.00055342,120]
[312483019,1705918425629,-1199.72,0.00055342,120]
[312483020,1705918425655,-1532.53,0.00055342,120]
[312483021,1705918425680,-1694.05,0.00055342,120]
[312483022,1705918425706,-500.0,0.00055342,120]
[312483023,1705918425735,-500.0,0.00055342,120]
[312483024,1705918425761,-6686.82,0.00055342,120]
[312483025,1705918425787,-500.0,0.00055342,120]
[312483026,1705918425813,-1450.35,0.00055342,120]
[312483027,1705918425841,-1145.67,0.00055342,120]
[312483028,1705918425868,-532.98,0.00055342,120]
[312483029,1705918425896,-2499.42,0.00055342,120]
[312483030,1705918425925,-500.0,0.00055342,120]
[312483031,1705918425952,-500.0,0.00055342,120]
[312483032,1705918425986,-500.0,0.00055342,120]
[312483033,1705918426014,-6801.26,0.00055342,120]
[312483034,1705918426043,-500.0,0.00055342,120]
[312483035,1705918426070,-500.0,0.00055342,120]
[312483036,1705918426099,-1565.19,0.00055342,120]
[312483037,1705918426125,-1113.77,0.00055342,120]
[312483038,1705918426152,-826.52,0.00055342,120]
[312483039,1705918426179,-949.09,0.00055342,120]
[312483040,1705918426209,-565.56,0.00055342,120]
[312483041,1705918426248,-1338.84,0.00055342,120]
[312483042,1705918426274,-500.0,0.00055342,120]
[312483043,1705918426301,-500.0,0.00055342,120]
[312483044,1705918426326,-554.17,0.00055342,120]
[312483045,1705918426352,-5157.15,0.00055342,120]
[312483046,1705918426376,-500.0,0.00055342,120]
[312483047,1705918426402,-500.0,0.00055342,120]
[312483048,1705918426428,-1051.0,0.00055342,120]
[312483049,1705918426456,-2238.16,0.00055342,120]
[312483050,1705918426484,-500.0,0.00055342,120]
[312483051,1705918426513,-268.50258665,0.00055342,120]
[312483052,1705918426540,-1373.79,0.00055342,120]
[312483053,1705918426565,-1019.58,0.00055342,120]
[312483054,1705918426591,-967.68,0.00055342,120]
[312483055,1705918426617,-1695.45,0.00055342,120]
[312483056,1705918426641,-500.0,0.00055342,120]
[312483057,1705918426666,-529.58,0.00055342,120]
[312483058,1705918426691,-500.0,0.00055342,120]
[312483059,1705918426719,-741.59,0.00055342,120]
[312483060,1705918426745,-500.0,0.00055342,120]
[312483061,1705918426770,-1989.11,0.00055342,120]
[312483062,1705918426800,-819.31,0.00055342,120]
[312483063,1705918426826,-500.0,0.00055342,120]
[312483064,1705918426852,-1387.06,0.00055342,120]
[312483065,1705918426878,-781.78,0.00055342,120]